fUSD/lending_fUSD_20250207
["ID","MTS","AMOUNT","RATE_DAILY","PERIOD"]
[352132624,1738956688256,-1381.35,0.00017534,2]
[352132625,1738956688274,-580.24,0.00017534,2]
[352132626,1738956688288,-1489.45,0.00017534,2]
[352132627,1738956688308,-500.0,0.00017534,2]
[352132628,1738956688321,-500.0,0.00017534,2]
[352132629,1738956688338,-1435.35,0.00017534,2]
[352132630,1738956688353,-1168.21,0.00017534,2]
[352132631,1738956688368,-3966.24,0.00017534,2]
[352132632,1738956688383,-648.0,0.00017534,2]
[352132633,1738956688399,-1165.23,0.00017534,2]
[352132634,1738956688416,-500.0,0.00017534,2]
[352132635,1738956688432,-2615.59,0.00017534,2]
[352132636,1738956688448,-830.58,0.00017534,2]
[352132637,1738956688464,-2112.58,0.00017534,2]
[352132638,1738956688479,-1540.26,0.00017534,2]
[352132639,1738956688495,-1387.93,0.00017534,2]
[352132640,1738956688510,-1751.47,0.00017534,2]
[352132641,1738956688525,-2850.19,0.00017534,2]
[352132642,1738956688540,-603.96,0.00017534,2]
[352132643,1738956688557,-500.0,0.00017534,2]
[352132644,1738956688572,-2172.91,0.00017534,2]
[352132645,1738956688593,-1670.17,0.00017534,2]
[352132646,1738956688608,-500.0,0.00017534,2]
[352132647,1738956688625,-1335.8,0.00017534,2]
[352132648,1738956688641,-1813.96,0.00017534,2]
[352132649,1738956688657,-500.0,0.00017534,2]
[352132650,1738956688673,-500.0,0.00017534,2]
[352132651,1738956688687,-1815.88,0.00017534,2]
[352132652,1738956688703,-1078.85,0.00017534,2]
[352132653,1738956688718,-500.0,0.00017534,2]
[352132654,1738956688732,-650.97,0.00017534,2]
[352132655,1738956688748,-1933.83,0.00017534,2]
[352132656,1738956688763,-1477.72,0.00017534,2]
[352132657,1738956688778,-520.8,0.00017534,2]
[352132658,1738956688792,-1313.81,0.00017534,2]
[352132659,1738956688809,-618.23,0.00017534,2]
[352132660,1738956688823,-500.0,0.00017534,2]
[352132661,1738956688839,-2982.88,0.00017534,2]
[352132662,1738956688854,-500.0,0.00017534,2]
[352132663,1738956688869,-500.0,0.00017534,2]
[352132664,1738956688884,-523.72,0.00017534,2]
[352132665,1738956688899,-1656.24,0.00017534,2]
[352132666,1738956688913,-3275.06,0.00017534,2]
[352132667,1738956688927,-1882.91,0.00017534,2]
[352132668,1738956688942,-1686.85,0.00017534,2]
[352132669,1738956688957,-972.36,0.00017534,2]
[352132670,1738956688973,-993.82,0.00017534,2]
[352132671,1738956688988,-2377.09,0.00017534,2]
[352132672,1738956689002,-1338.75,0.00017534,2]
[352132673,1738956689017,-1209.72,0.00017534,2]
[352132674,1738956689031,-3708.92,0.00017534,2]
[352132675,1738956689047,-2135.6,0.00017534,2]
[352132676,1738956689062,-2799.93,0.00017534,2]
[352132677,1738956689076,-2642.08,0.00017534,2]
[352132678,1738956689090,-928.35,0.00017534,2]
[352132679,1738956689104,-2130.68,0.00017534,2]
[352132680,1738956689119,-2968.87,0.00017534,2]
[352132681,1738956689134,-500.0,0.00017534,2]
[352132682,1738956689148,-908.973936,0.00017534,2]
[352132683,1738956689163,-4265.56,0.00017534,2]
[352132684,1738956689177,-1264.49,0.00017534,2]
[352132685,1738956689196,-151.0,0.00017534,2]
[352132686,1738956689211,-244.1,0.00017534,2]
[352132687,1738956689226,-2756.51,0.00017534,2]
[352132688,1738956689240,-431.342835,0.00017534,2]
[352132689,1738956689254,-1952.36,0.00017534,2]
[352132690,1738956689269,-908.973936,0.00017534,2]
[352132691,1738956689283,-431.342835,0.00017534,2]
[352132692,1738956689297,-500.0,0.00017534,2]
[352132693,1738956689312,-2675.04,0.00017534,2]
[352132694,1738956689327,-1643.06,0.00017534,2]
[352132695,1738956689341,-2535.68,0.00017534,2]
[352132696,1738956689355,-2559.02,0.00017534,2]
[352132697,1738956689369,-299.881877,0.00017534,2]
[352132698,1738956689384,-982.62,0.00017534,2]
[352132699,1738956689399,-1048.24,0.00017534,2]
[352132700,1738956689415,-652.99,0.00017534,2]
[352132701,1738956689430,-3904.04,0.00017534,2]
[352132702,1738956689443,-1687.81,0.00017534,2]
[352132703,1738956689461,-1846.01,0.00017534,2]
[352132704,1738956689480,-533.48,0.00017534,2]
[352132705,1738956689495,-519.482943,0.00017534,2]
[352132706,1738956689510,-8054.78,0.00017534,2]
[352132707,1738956689705,-2697.16,0.00017534,2]
[352132708,1738956689715,-1537.43,0.00017534,2]
[352132709,1738956689725,-4171.0,0.00017534,2]
[352132710,1738956689735,-500.0,0.00017534,2]
[352132711,1738956689745,-4545.2,0.00017534,2]
[352132712,1738956689755,-871.03,0.00017534,2]
[352132713,1738956689764,-1100.92,0.00017534,2]
[352132714,1738956689774,-4717.88,0.00017534,2]
[352132715,1738956689785,-1186.63,0.00017534,2]
[352132716,1738956689794,-778.34,0.00017534,2]
[352132717,1738956689804,-500.0,0.00017534,2]
[352132718,1738956689813,-6146.82,0.00017534,2]
[352132719,1738956689823,-1352.28,0.00017534,2]
[352132720,1738956689833,-2922.19,0.00017534,2]
[352132721,1738956689842,-500.0,0.00017534,2]
[352132722,1738956689851,-823.38,0.00017534,2]
[352132723,1738956689862,-2029.74,0.00017534,2]
[352132724,1738956689872,-500.0,0.00017534,2]
[352132725,1738956689882,-500.0,0.00017534,2]
[352132726,1738956689892,-4297.56,0.00017534,2]
[352132727,1738956689901,-4260.15,0.00017534,2]
[352132728,1738956689911,-1150.5,0.00017534,2]
[352132729,1738956689922,-4984.09,0.00017534,2]
[352132730,1738956689931,-660.355421,0.00017534,2]
[352132731,1738956689941,-4214.42,0.00017534,2]
[352132732,1738956689950,-1455.84,0.00017534,2]
[352132733,1738956689960,-1559.73,0.00017534,2]
[352132734,1738956689970,-1241.92,0.00017534,2]
[352132735,1738956689980,-660.355421,0.00017534,2]
[352132736,1738956689989,-2692.24,0.00017534,2]
[352132737,1738956689999,-500.0,0.00017534,2]
[352132738,1738956690009,-630.57,0.00017534,2]
[352132739,1738956690018,-558.99958719,0.00017534,2]
[352132740,1738956690028,-1067.17,0.00017534,2]
[352132741,1738956690038,-881.73,0.00017534,2]
[352132742,1738956690049,-3307.35,0.00017534,2]
[352132743,1738956690058,-2646.43,0.00017534,2]
[352132744,1738956690067,-500.0,0.00017534,2]
[352132745,1738956690076,-742.64,0.00017534,2]
[352132746,1738956690086,-548.98,0.00017534,2]
[352132747,1738956690095,-3381.29,0.00017534,2]
[352132748,1738956690105,-797.92,0.00017534,2]
[352132749,1738956690115,-151.0,0.00017534,2]
[352132750,1738956690125,-3042.11,0.00017534,2]
[352132751,1738956690135,-553.95,0.00017534,2]
[352132752,1738956690145,-527.06,0.00017534,2]
[352132753,1738956690155,-500.0,0.00017534,2]
[352132754,1738956690164,-1555.24,0.00017534,2]
[352132755,1738956690173,-3666.13,0.00017534,2]
[352132756,1738956690183,-1049.9,0.00017534,2]
[352132757,1738956690192,-500.0,0.00017534,2]
[352132758,1738956690202,-165.78,0.00017558,2]
[352132759,1738956690212,-1290.42600194,0.00017565,2]
[352132760,1738956690222,-500.0,0.000176,3]
[352132761,1738956690231,-1290.42600194,0.00017632,2]
[352132762,1738956690240,-1493.5240139,0.00017659,2]
[352132763,1738956690249,-500.27,0.00017669,2]
[352132764,1738956690259,-500.0,0.00017669,2]
[352132765,1738956690268,-500.0,0.00017669,2]
[352132766,1738956690277,-585.09858424,0.00017669,2]
[352132767,1738956690287,-500.0,0.00017669,2]
[352132768,1738956690298,-500.0,0.00017669,2]
[352132769,1738956690308,-500.0,0.00017669,2]
[352132770,1738956690318,-500.0,0.00017669,2]
[352132771,1738956690329,-500.0,0.00017669,2]
[352132772,1738956690339,-500.0,0.00017669,2]
[352132773,1738956690349,-500.0,0.00017669,2]
[352132774,1738956690360,-575.01,0.00017669,2]
[352132775,1738956690370,-500.0,0.00017669,2]
[352132776,1738956690380,-500.0,0.00017669,2]
[352132777,1738956690390,-500.0,0.00017669,2]
[352132778,1738956690399,-500.0,0.00017669,2]
[352132779,1738956690410,-442.00251471,0.00017669,2]
[352132780,1738956690419,-500.0,0.00017669,2]
[352132781,1738956690429,-500.0,0.00017669,2]
[352132782,1738956690438,-500.0,0.00017669,2]
[352132783,1738956690448,-500.0,0.00017669,2]
[352132784,1738956690457,-540.67,0.00017669,2]
[352132785,1738956690467,-557.1,0.00017669,2]
[352132786,1738956690476,-500.0,0.00017669,2]
[352132787,1738956690486,-500.0,0.00017669,2]
[352132788,1738956690496,-500.0,0.00017669,2]
[352132789,1738956690505,-500.0,0.00017669,2]
[352132790,1738956690515,-643.69304606,0.00017669,2]
[352132791,1738956690525,-530.71,0.00017669,2]
[352132792,1738956690535,-2942.64,0.00017669,2]
[352132793,1738956690546,-489.92,0.00017669,2]
[352132794,1738956690555,-1743.62,0.00017669,2]
[352132795,1738956690565,-500.0,0.00017669,2]
[352132796,1738956690575,-720.06,0.00017669,2]
[352132797,1738956690588,-5046.81,0.00017669,2]
[352132798,1738956690598,-500.0,0.00017669,2]
[352132799,1738956690607,-500.0,0.00017669,2]
[352132800,1738956690616,-500.0,0.00017669,2]
[352132801,1738956690626,-1994.07,0.00017669,2]
[352132802,1738956690636,-1138.25,0.00017669,2]
[352132803,1738956690645,-500.0,0.00017669,2]
[352132804,1738956690655,-500.0,0.00017669,2]
[352132805,1738956690664,-3516.18,0.00017669,2]
[352132806,1738956690675,-500.0,0.00017669,2]
[352132807,1738956690685,-500.0,0.00017669,2]
[352132808,1738956690695,-1024.51,0.00017669,2]
[352132809,1738956690705,-2173.49,0.00017669,2]
[352132810,1738956690714,-612.99,0.00017669,2]
[352132811,1738956690724,-1229.36,0.00017669,2]
[352132812,1738956690733,-2227.07,0.00017669,2]
[352132813,1738956690744,-2301.73,0.00017669,2]
[352132814,1738956690754,-1183.89,0.00017669,2]
[352132815,1738956690764,-518.71,0.00017669,2]
[352132816,1738956690773,-2133.71,0.00017669,2]
[352132817,1738956690783,-500.0,0.00017669,2]
[352132818,1738956690794,-2304.96,0.00017669,2]
[352132819,1738956690803,-4101.49,0.00017669,2]
[352132820,1738956690813,-629.73,0.00017669,2]
[352132821,1738956690823,-10904.08,0.00017669,2]
[352132822,1738956690833,-1990.52,0.00017669,2]
[352132823,1738956690842,-1994.74,0.00017669,2]
[352132824,1738956690851,-500.0,0.00017669,2]
[352132825,1738956690861,-2018.74,0.00017669,2]
[352132826,1738956690871,-500.0,0.00017669,2]
[352132827,1738956690881,-500.0,0.00017669,2]
[352132828,1738956690891,-500.0,0.00017669,2]
[352132829,1738956690900,-500.0,0.00017669,2]
[352132830,1738956690910,-1695.7,0.00017669,2]
[352132831,1738956690920,-3966.69,0.00017669,2]
[352132832,1738956690930,-662.29,0.00017669,2]
[352132833,1738956690940,-1062.51,0.0001767,2]
[352132834,1738956690949,-1219.59,0.0001767,2]
[352132835,1738956690959,-857.35,0.0001767,2]
[352132836,1738956690969,-526.56,0.0001767,2]
[352132837,1738956690978,-500.0,0.0001767,2]
[352132838,1738956690987,-547.58,0.0001767,2]
[352132839,1738956690997,-500.0,0.0001767,2]
[352132840,1738956691007,-500.0,0.0001767,2]
[352132841,1738956691016,-1136.81,0.0001767,2]
[352132842,1738956691027,-533.79,0.0001767,2]
[352132843,1738956691038,-500.0,0.0001767,2]
[352132844,1738956691047,-500.0,0.0001767,2]
[352132845,1738956691057,-1186.33,0.0001767,2]
[352132846,1738956691066,-500.0,0.0001767,2]
[352132847,1738956691076,-529.03,0.0001767,2]
[352132848,1738956691086,-1230.22,0.0001767,2]
[352132849,1738956691095,-500.0,0.0001767,2]
[352132850,1738956691104,-1245.85,0.0001767,2]
[352132851,1738956691114,-500.0,0.0001767,2]
[352132852,1738956691123,-1446.41,0.0001767,2]
[352132853,1738956691132,-565.43,0.0001767,2]
[352132854,1738956691142,-564.24,0.0001767,2]
[352132855,1738956691152,-500.0,0.0001767,2]
[352132856,1738956691162,-550.96,0.0001767,2]
[352132857,1738956691171,-335.49,0.0001767,2]
[352132858,1738956691181,-1579.64,0.0001767,2]
[352132859,1738956691191,-520.2,0.0001767,2]
[352132860,1738956691201,-1605.34,0.0001767,2]
[352132861,1738956691211,-1579.05,0.0001767,2]
[352132862,1738956691221,-551.37,0.0001767,2]
[352132863,1738956691231,-601.14,0.0001767,2]
[352132864,1738956691242,-197.83,0.0001767,2]
[352132865,1738956691251,-1184.1,0.0001767,2]
[352132866,1738956691261,-678.58,0.0001767,2]
[352132867,1738956691271,-283.16,0.0001767,2]
[352132868,1738956691281,-515.45,0.0001767,2]
[352132869,1738956691291,-521.99,0.0001767,2]
[352132870,1738956691302,-552.13,0.0001767,2]
[352132871,1738956691312,-2651.33,0.0001767,2]
[352132872,1738956691322,-615.95,0.0001767,2]
[352132873,1738956691332,-500.0,0.0001767,2]
[352132874,1738956691343,-467.230511,0.00017671,2]
[352132875,1738956691353,-467.230511,0.00017671,2]
[352132876,1738956691363,-500.0,0.00017671,2]
[352132877,1738956691373,-500.0,0.00017671,2]
[352132878,1738956691382,-659.78,0.00017671,2]
[352132879,1738956691392,-500.0,0.00017671,2]
[352132880,1738956691401,-500.0,0.00017671,2]
[352132881,1738956691411,-500.0,0.00017671,2]
[352132882,1738956691421,-500.0,0.00017671,2]
[352132883,1738956691431,-500.0,0.00017671,2]
[352132884,1738956691441,-500.0,0.00017671,2]
[352132885,1738956691450,-500.0,0.00017671,2]
[352132886,1738956691460,-513.84,0.00017671,2]
[352132887,1738956691469,-1712.36,0.00017671,2]
[352132888,1738956691479,-1938.63,0.00017671,2]
[352132889,1738956691488,-1697.97,0.00017671,2]
[352132890,1738956691498,-500.0,0.00017671,2]
[352132891,1738956691508,-1225.54,0.00017671,2]
[352132892,1738956691517,-500.0,0.00017671,2]
[352132893,1738956691527,-676.85,0.00017671,2]
[352132894,1738956691536,-500.0,0.00017671,2]
[352132895,1738956691546,-1685.31,0.00017671,60]
[352132896,1738956691557,-541.77,0.00017671,2]
[352132897,1738956691567,-667.78,0.00017671,2]
[352132898,1738956691581,-573.49,0.00017671,2]
[352132899,1738956691592,-1308.11,0.00017671,2]
[352132900,1738956691602,-1722.81,0.00017671,2]
[352132901,1738956691612,-500.0,0.00017671,2]
[352132902,1738956691622,-925.93,0.00017671,2]
[352132903,1738956691631,-447.43,0.00017671,2]
[352132904,1738956691641,-1095.49,0.00017671,2]
[352132905,1738956691652,-500.0,0.00017671,2]
[352132906,1738956691661,-649.37,0.00017671,2]
[352132907,1738956691672,-776.83,0.00017671,2]
[352132908,1738956691681,-1010.35,0.00017671,2]
[352132909,1738956691691,-1263.77,0.00017671,2]
[352132910,1738956691701,-500.0,0.00017671,2]
[352132911,1738956691834,-500.0,0.00017671,2]
[352132912,1738956691844,-1637.13,0.00017671,2]
[352132913,1738956691853,-694.17,0.00017671,2]
[352132914,1738956691863,-500.0,0.00017671,2]
[352132915,1738956691872,-730.01,0.00017671,2]
[352132916,1738956691882,-500.0,0.00017671,2]
[352132917,1738956691891,-1444.08,0.00017671,2]
[352132918,1738956691901,-500.0,0.00017671,2]
[352132919,1738956691910,-500.0,0.00017671,2]
[352132920,1738956691920,-500.0,0.00017671,2]
[352132921,1738956691929,-712.73,0.00017671,2]
[352132922,1738956691939,-500.0,0.00017671,2]
[352132923,1738956691948,-500.0,0.00017671,2]
[352132924,1738956691957,-500.0,0.00017671,2]
[352132925,1738956691966,-500.0,0.00017671,2]
[352132926,1738956691977,-500.0,0.00017671,2]
[352132927,1738956691987,-500.0,0.00017671,2]
[352132928,1738956691996,-1676.26,0.00017671,2]
[352132929,1738956692006,-500.0,0.00017671,2]
[352132930,1738956692015,-500.0,0.00017671,2]
[352132931,1738956692025,-500.0,0.00017671,2]
[352132932,1738956692035,-500.0,0.00017671,2]
[352132933,1738956692044,-500.0,0.00017671,2]
[352132934,1738956692055,-1138.99,0.00017671,2]
[352132935,1738956692065,-500.0,0.00017671,2]
[352132936,1738956692074,-500.0,0.00017671,2]
[352132937,1738956692084,-500.0,0.00017671,2]
[352132938,1738956692093,-500.0,0.00017671,2]
[352132939,1738956692103,-1316.0,0.00017671,2]
[352132940,1738956692112,-725.14,0.00017671,2]
[352132941,1738956692121,-1188.45,0.00017671,2]
[352132942,1738956692130,-516.4,0.00017671,2]
[352132943,1738956692140,-510.03,0.00017671,2]
[352132944,1738956692149,-500.0,0.00017671,2]
[352132945,1738956692159,-1472.92,0.00017671,2]
[352132946,1738956692169,-1412.12,0.00017671,2]
[352132947,1738956692179,-500.0,0.00017671,2]
[352132948,1738956692188,-529.81,0.00017671,2]
[352132949,1738956692198,-981.75,0.00017671,2]
[352132950,1738956692207,-520.02,0.00017671,2]
[352132951,1738956692217,-647.02,0.00017671,2]
[352132952,1738956692227,-1033.68,0.00017671,2]
[352132953,1738956692236,-522.48,0.00017671,2]
[352132954,1738956692245,-500.0,0.00017671,2]
[352132955,1738956692255,-662.32,0.00017671,2]
[352132956,1738956692264,-1353.23,0.00017671,2]
[352132957,1738956692274,-508.39,0.00017671,2]
[352132958,1738956692284,-1634.27,0.00017671,2]
[352132959,1738956692293,-500.0,0.00017671,2]
[352132960,1738956692303,-544.73,0.00017671,2]
[352132961,1738956692314,-529.48,0.00017671,2]
[352132962,1738956692323,-500.0,0.00017671,2]
[352132963,1738956692333,-939.05,0.00017671,2]
[352132964,1738956692342,-1428.68,0.00017671,2]
[352132965,1738956692352,-500.0,0.00017671,2]
[352132966,1738956692362,-690.69,0.00017671,2]
[352132967,1738956692371,-1130.37,0.00017671,2]
[352132968,1738956692381,-500.0,0.00017671,2]
[352132969,1738956692391,-1381.35,0.00017671,2]
[352132970,1738956692402,-580.24,0.00017671,2]
[352132971,1738956692412,-1489.45,0.00017671,2]
[352132972,1738956692422,-500.0,0.00017671,2]
[352132973,1738956692433,-1435.35,0.00017671,2]
[352132974,1738956692443,-500.0,0.00017671,2]
[352132975,1738956692453,-1168.21,0.00017671,2]
[352132976,1738956692463,-3966.24,0.00017671,2]
[352132977,1738956692473,-648.0,0.00017671,2]
[352132978,1738956692483,-1165.23,0.00017671,2]
[352132979,1738956692494,-500.0,0.00017671,2]
[352132980,1738956692504,-2615.59,0.00017671,2]
[352132981,1738956692514,-830.58,0.00017671,2]
[352132982,1738956692524,-2112.58,0.00017671,2]
[352132983,1738956692534,-1540.26,0.00017671,2]
[352132984,1738956692544,-1387.93,0.00017671,2]
[352132985,1738956692554,-1751.47,0.00017671,2]
[352132986,1738956692564,-2850.19,0.00017671,2]
[352132987,1738956692573,-603.96,0.00017671,2]
[352132988,1738956692587,-500.0,0.00017671,2]
[352132989,1738956692596,-2172.91,0.00017671,2]
[352132990,1738956692606,-1670.17,0.00017671,2]
[352132991,1738956692615,-500.0,0.00017671,2]
[352132992,1738956692626,-1335.8,0.00017671,2]
[352132993,1738956692635,-1813.96,0.00017671,2]
[352132994,1738956692645,-332.23,0.00017671,2]
[352132995,1738956692654,-500.0,0.00017671,2]
[352132996,1738956692664,-1815.88,0.00017671,2]
[352132997,1738956692674,-1078.85,0.00017671,2]
[352132998,1738956692683,-500.0,0.00017671,2]
[352132999,1738956692693,-650.97,0.00017671,2]
[352133000,1738956692703,-1933.83,0.00017671,2]
[352133001,1738956692713,-1477.72,0.00017671,2]
[352133002,1738956692723,-520.8,0.00017671,2]
[352133003,1738956692732,-1313.81,0.00017671,2]
[352133004,1738956692742,-618.23,0.00017671,2]
[352133005,1738956692752,-500.0,0.00017671,2]
[352133006,1738956692762,-2982.88,0.00017671,2]
[352133007,1738956692771,-500.0,0.00017671,2]
[352133008,1738956692782,-500.0,0.00017671,2]
[352133009,1738956692791,-523.72,0.00017671,2]
[352133010,1738956692801,-1656.24,0.00017671,2]
[352133011,1738956692810,-3275.06,0.00017671,2]
[352133012,1738956692821,-1882.91,0.00017671,2]
[352133013,1738956692831,-972.36,0.00017671,2]
[352133014,1738956692840,-1686.85,0.00017671,2]
[352133015,1738956692850,-993.82,0.00017671,2]
[352133016,1738956692859,-2377.09,0.00017671,2]
[352133017,1738956692868,-1338.75,0.00017671,2]
[352133018,1738956692878,-1209.72,0.00017671,2]
[352133019,1738956692887,-3708.92,0.00017671,2]
[352133020,1738956692897,-2135.6,0.00017671,2]
[352133021,1738956692906,-2799.93,0.00017671,2]
[352133022,1738956692916,-2642.08,0.00017671,2]
[352133023,1738956692925,-928.35,0.00017671,2]
[352133024,1738956692935,-2130.68,0.00017671,2]
[352133025,1738956692944,-2968.87,0.00017671,2]
[352133026,1738956692954,-500.0,0.00017671,2]
[352133027,1738956692963,-4265.56,0.00017671,2]
[352133028,1738956692973,-1264.49,0.00017671,2]
[352133029,1738956692983,-2756.51,0.00017671,2]
[352133030,1738956692992,-1952.36,0.00017671,2]
[352133031,1738956693002,-500.0,0.00017671,2]
[352133032,1738956693011,-2675.04,0.00017671,2]
[352133033,1738956693021,-1643.06,0.00017671,2]
[352133034,1738956693030,-2535.68,0.00017671,2]
[352133035,1738956693040,-2559.02,0.00017671,2]
[352133036,1738956693049,-982.62,0.00017671,2]
[352133037,1738956693058,-1048.24,0.00017671,2]
[352133038,1738956693068,-652.99,0.00017671,2]
[352133039,1738956693078,-3904.04,0.00017671,2]
[352133040,1738956693088,-1687.81,0.00017671,2]
[352133041,1738956693097,-1846.01,0.00017671,2]
[352133042,1738956693107,-8054.78,0.00017671,2]
[352133043,1738956693117,-2697.16,0.00017671,2]
[352133044,1738956693128,-1537.43,0.00017671,2]
[352133045,1738956693138,-4171.0,0.00017671,2]
[352133046,1738956693147,-500.0,0.00017671,2]
[352133047,1738956693157,-4545.2,0.00017671,2]
[352133048,1738956693167,-871.03,0.00017671,2]
[352133049,1738956693176,-1100.92,0.00017671,2]
[352133050,1738956693186,-4717.88,0.00017671,2]
[352133051,1738956693195,-1186.63,0.00017671,2]
[352133052,1738956693204,-778.34,0.00017671,2]
[352133053,1738956693214,-500.0,0.00017671,2]
[352133054,1738956693224,-6146.82,0.00017671,2]
[352133055,1738956693234,-1352.28,0.00017671,2]
[352133056,1738956693243,-2922.19,0.00017671,2]
[352133057,1738956693253,-500.0,0.00017671,2]
[352133058,1738956693263,-823.38,0.00017671,2]
[352133059,1738956693273,-2029.74,0.00017671,2]
[352133060,1738956693283,-500.0,0.00017671,2]
[352133061,1738956693293,-500.0,0.00017671,2]
[352133062,1738956693304,-4297.56,0.00017671,2]
[352133063,1738956693314,-4260.15,0.00017671,2]
[352133064,1738956693323,-1150.5,0.00017671,2]
[352133065,1738956693333,-4984.09,0.00017671,2]
[352133066,1738956693343,-4214.42,0.00017671,2]
[352133067,1738956693352,-1455.84,0.00017671,2]
[352133068,1738956693362,-1559.73,0.00017671,2]
[352133069,1738956693373,-1241.92,0.00017671,2]
[352133070,1738956693383,-2692.24,0.00017671,2]
[352133071,1738956693392,-500.0,0.00017671,2]
[352133072,1738956693402,-630.57,0.00017671,2]
[352133073,1738956693412,-1067.17,0.00017671,2]
[352133074,1738956693422,-881.73,0.00017671,2]
[352133075,1738956693432,-3307.35,0.00017671,2]
[352133076,1738956693442,-2646.43,0.00017671,2]
[352133077,1738956693451,-500.0,0.00017671,2]
[352133078,1738956693460,-742.64,0.00017671,2]
[352133079,1738956693471,-3381.29,0.00017671,2]
[352133080,1738956693481,-548.98,0.00017671,2]
[352133081,1738956693491,-797.92,0.00017671,2]
[352133082,1738956693501,-3042.11,0.00017671,2]
[352133083,1738956693511,-553.95,0.00017671,2]
[352133084,1738956693521,-527.06,0.00017671,2]
[352133085,1738956693531,-500.0,0.00017671,2]
[352133086,1738956693541,-1555.24,0.00017671,2]
[352133087,1738956693551,-3666.13,0.00017671,2]
[352133088,1738956693561,-1049.9,0.00017671,2]
[352133089,1738956693570,-431.0,0.0001769,2]
[352133090,1738956693582,-42190.0,0.00017695,2]
[352133091,1738956693592,-1290.42600194,0.00017699,2]
[352133092,1738956693602,-1000.0,0.00017721,2]
[352133093,1738956693611,-354.63,0.00017723,2]
[352133094,1738956693622,-1290.42600194,0.00017766,2]
[352133095,1738956693632,-3552.8576205,0.00017796,2]
[352133096,1738956693642,-2000.0,0.00017799,2]
[352133097,1738956693651,-2000.0,0.00017806,2]
[352133098,1738956693662,-500.27,0.00017806,2]
[352133099,1738956693671,-500.0,0.00017806,2]
[352133100,1738956693681,-500.0,0.00017806,2]
[352133101,1738956693691,-500.0,0.00017806,2]
[352133102,1738956693701,-500.0,0.00017806,2]
[352133103,1738956693710,-500.0,0.00017806,2]
[352133104,1738956693720,-500.0,0.00017806,2]
[352133105,1738956693730,-500.0,0.00017806,2]
[352133106,1738956693740,-500.0,0.00017806,2]
[352133107,1738956693751,-500.0,0.00017806,2]
[352133108,1738956693761,-500.0,0.00017806,2]
[352133109,1738956693771,-500.0,0.00017806,2]
[352133110,1738956693781,-500.0,0.00017806,2]
[352133111,1738956693791,-500.0,0.00017806,2]
[352133112,1738956693801,-500.0,0.00017806,2]
[352133113,1738956693811,-500.0,0.00017806,2]
[352133114,1738956693820,-500.0,0.00017806,2]
[352133115,1738956693831,-500.0,0.00017806,2]
[352133116,1738956693840,-540.67,0.00017806,2]
[352133117,1738956693850,-557.1,0.00017806,2]
[352133118,1738956693860,-500.0,0.00017806,2]
[352133119,1738956693870,-500.0,0.00017806,2]
[352133120,1738956693879,-500.0,0.00017806,2]
[352133121,1738956693889,-500.0,0.00017806,2]
[352133122,1738956693898,-530.71,0.00017806,2]
[352133123,1738956693909,-2942.64,0.00017806,2]